Workbook

Sheet Radiatoren (A)
B3: Hydraulischer Abgleich in bestehenden Gebäuden
B5: Ermittlung der Volumenströme für den statischen Strangabgleich von Heizungsanlagen mit Raumheizkörpern anhand der Heizlast oder des Wärmebedarfs bzw. der Wärmeleistung der vorhandenen Heizkörper sowie der Temperaturdifferenz des Heizsystems.
A6: A) | B6: Ermittlung über die Heizlast: Die spezifische Gebäudeheizlast [W/m²] wird durch eine Heizlastberechnung nach DIN EN 12831 oder eine überschlägige Berechnungsmethode ermittelt. Für eine grobe Abschätzung der Heizlast für bestehende Gebäude können die Kennwerte aus der nebenstehenden Tabelle herangezogen werden. Die Anwendung dieser Kennwerte ersetzt jedoch nicht eine genaue Berechnung der Heizlast. | AA6: Erfahrungswerte für die spezifische Heizlast bestehender Gebäude zur Abschätzung der Heizlast
AA8: Baujahr | AE8: spezifische Heizlast
A10: B) | B10: Ermittlung über den Raumwärmebedarf bzw. die Heizkörper-Wärmeleistung: Der Wärmebedarf je Raum wird einer zugrundeliegenden Wärmebedarfsberechnung entnommen. Stehen diese Daten nicht zur Verfügung, können mit diesem Formblatt die vorhandenen Heizkörper aufgenommen werden. Mit diesen Daten kann die Wärmeleistung der Heizkörper anhand von Herstellerunterlagen bestimmt werden. | AA10: bis 1970, ungedämmt | AE10: 120…180 W/m²
AA11: 1977 bis 1984 | AE11: 70…100 W/m²
AA12: 1985 bis 1995 | AE12: 50…70 W/m²
AA13: Neubau, EnEV | AE13: 40…50 W/m²
AA14: Neubau, KfW 40/60 | AE14: 20…30 W/m²
B15: Hinweis zur Anwendung: Wählen Sie am unteren Bildschirmrand die Registerkarte mit der gewünschten Anwendung. Mit der TAB-Taste können Sie zwischen den blau hinterlegten Auswahl- und Eingabefeldern navigieren. Drücken Sie nach Auswahl oder Eingabe die TAB-Taste. | AA15: Passivhaus | AE15: 10…15 W/m²
AA17: Auswahl: | AC17: 60 | AE17: W/m²
D20: Summe Raumflächen
A21: 1 | D21: Verteiler: | I21: =($Q$21+$W$21+$AC$21+$AI$21+$AO$21+$AU$21+$BA$21)*$A$21 -> 67 | N21: m² | P21: Raumgröße: | Q21: 21 | R21: m² | V21: Raumgröße: | W21: 12 | X21: m² | AB21: Raumgröße: | AC21: 16 | AD21: m² | AH21: Raumgröße: | AI21: 11 | AJ21: m² | AN21: Raumgröße: | AO21: 7 | AP21: m² | AT21: Raumgröße: | AV21: m² | AZ21: Raumgröße: | BB21: m²
P23: Baulänge: | R23: mm | V23: Baulänge: | X23: mm | AB23: Baulänge: | AD23: mm | AH23: Baulänge: | AJ23: mm | AN23: Baulänge: | AP23: mm | AT23: Baulänge: | AV23: mm | AZ23: Baulänge: | BB23: mm
P25: Bauhöhe: | R25: mm | V25: Bauhöhe: | X25: mm | AB25: Bauhöhe: | AD25: mm | AH25: Bauhöhe: | AJ25: mm | AN25: Bauhöhe: | AP25: mm | AT25: Bauhöhe: | AV25: mm | AZ25: Bauhöhe: | BB25: mm
P27: Bautiefe: | R27: mm | V27: Bautiefe: | X27: mm | AB27: Bautiefe: | AD27: mm | AH27: Bautiefe: | AJ27: mm | AN27: Bautiefe: | AP27: mm | AT27: Bautiefe: | AV27: mm | AZ27: Bautiefe: | BB27: mm
P29: Wärmeleistung: | R29: W | V29: Wärmeleistung: | X29: W | AB29: Wärmeleistung: | AD29: W | AH29: Wärmeleistung: | AJ29: W | AN29: Wärmeleistung: | AP29: W | AT29: Wärmeleistung: | AV29: W | AZ29: Wärmeleistung: | BB29: W
P30: Heizkörper | V30: Heizkörper | AB30: Heizkörper | AH30: Heizkörper | AN30: Heizkörper | AT30: Heizkörper | AZ30: Heizkörper
D31: Summe Raumflächen
A32: 1 | D32: Verteiler: | I32: =($Q$32+$W$32+$AC$32+$AI$32+$AO$32+$AU$32+$BA$32)*$A$32 -> 119 | N32: m² | P32: Raumgröße: | Q32: 36 | R32: m² | V32: Raumgröße: | W32: 24 | X32: m² | AB32: Raumgröße: | AC32: 14 | AD32: m² | AH32: Raumgröße: | AI32: 9 | AJ32: m² | AN32: Raumgröße: | AO32: 10 | AP32: m² | AT32: Raumgröße: | AU32: 18 | AV32: m² | AZ32: Raumgröße: | BA32: 8 | BB32: m²
P34: Baulänge: | R34: mm | V34: Baulänge: | X34: mm | AB34: Baulänge: | AD34: mm | AH34: Baulänge: | AJ34: mm | AN34: Baulänge: | AP34: mm | AT34: Baulänge: | AV34: mm | AZ34: Baulänge: | BB34: mm
P36: Bauhöhe: | R36: mm | V36: Bauhöhe: | X36: mm | AB36: Bauhöhe: | AD36: mm | AH36: Bauhöhe: | AJ36: mm | AN36: Bauhöhe: | AP36: mm | AT36: Bauhöhe: | AV36: mm | AZ36: Bauhöhe: | BB36: mm
P38: Bautiefe: | R38: mm | V38: Bautiefe: | X38: mm | AB38: Bautiefe: | AD38: mm | AH38: Bautiefe: | AJ38: mm | AN38: Bautiefe: | AP38: mm | AT38: Bautiefe: | AV38: mm | AZ38: Bautiefe: | BB38: mm
P40: Wärmeleistung: | R40: W | V40: Wärmeleistung: | X40: W | AB40: Wärmeleistung: | AD40: W | AH40: Wärmeleistung: | AJ40: W | AN40: Wärmeleistung: | AP40: W | AT40: Wärmeleistung: | AV40: W | AZ40: Wärmeleistung: | BB40: W
P41: Heizkörper | V41: Heizkörper | AB41: Heizkörper | AH41: Heizkörper | AN41: Heizkörper | AT41: Heizkörper | AZ41: Heizkörper
C43: Vorlauftemperatur TVL | P43: 80 | Q43: °C | V43: =$P$43-$P$46 -> 20 | W43: K | AB43: Auswahl Abgleichventil
AB45: TacoSetter Bypass 100
P46: 60 | Q46: °C
C47: Rücklauftemperatur TRL | V47: Temperaturdifferenz DT | AB47: Dimension | AC47: Messbereich | AE47: l/min
AB48: DN 15 | AD48: 2-8 l/min | AE48: =$V$59 -> 8.0
B49: Berechnung der Volumenströme für den Strangabgleich: | AB49: DN 20 | AD49: 4-15 l/min | AE49: =$V$59 -> 8.0
AB50: DN 20 | AD50: 8-30 l/min | AE50: =$V$59 -> 8.0
A51: A) | C51: Heizlast Q [W] = spezifische Heizlast [W/m²] x Summe aller Raumflächen | AB51: DN 25 | AD51: 6-20 l/min | AE51: 8.0
AB52: DN 25 | AD52: 10-40 l/min | AE52: 8.0
D53: =$AC$17 -> 60 | M53: W/m² x | P53: =$I$21+$I$32 -> 186 | R53: m² | S53: = | U53: =$D$53*P53 -> 11160 | W53: W | AB53: DN 32 | AD53: 20-70 l/min | AE53: 8.0
AB54: DN 40 | AD54: 30-120 l/min | AE54: 8.0
A55: B) | C55: Heizlast Q [W] = Summe Wärmeleistung Strang | AB55: DN 50 | AD55: 50-200 l/min | AE55: 8.0
AB56: TacoSetter Bypass Flansch
C57: Volumenstrom im Strang:
C58: . | J58: . | AB58: Dimension | AC58: Messbereich | AE58: l/min
C59: V | D59: = | J59: Q | O59: = | P59: =$U$53 -> 11160 | R59: W | U59: = | V59: =$U$53/(1.163*60*$V$43) -> 8.0 | X59: l | AB59: DN 65 | AD59: 60-325 l/min | AE59: =$V$59 -> 8.0
F60: c x (TVL-TRL) | P60: c x | Q60: =$V$43 -> 20 | R60: K | X60: min | AB60: DN 80 | AD60: 75-450 l/min | AE60: =$V$59 -> 8.0
AB61: DN 100 | AD61: 100-650 l/min | AE61: =$V$59 -> 8.0
C63: c = | D63: Konstante für die spezifische Wärmekapazität von Wasser (1,163 Wh / l x K)
D64: Die Formel enthält die Umrechnung der Einheit [l/h] in [l/min]
A68: Anzahl Stockwerke | O68: Heizlast
A69: 1 | O69: 10
A70: 2 | O70: 15
A71: 3 | O71: 20
A72: 4 | O72: 25
A73: 5 | O73: 30
A74: 6 | O74: 35
A75: 7 | O75: 40
A76: 8 | O76: 45
A77: 9 | O77: 50
A78: 10 | O78: 60
A79: 11 | O79: 70
A80: 12 | O80: 80
A81: 13 | O81: 90
A82: 14 | O82: 100
A83: 15 | O83: 110
A84: 16 | O84: 120
A85: 17 | O85: 130
A86: 18 | O86: 140
A87: 19 | O87: 150
A88: 20 | O88: 160
A89: 21 | O89: 170
A90: 22 | O90: 180
A91: 23 | O91: 190
A92: 24 | O92: 200
A93: 25 | O93: 210
A94: 26 | O94: 220
A95: 27 | O95: 230
A96: 28 | O96: 240
A97: 29 | O97: 250
A98: 30 | O98: 300

Sheet Radiatoren (B)
B3: Hydraulischer Abgleich in bestehenden Gebäuden
B5: Ermittlung der Volumenströme für den statischen Strangabgleich von Heizungsanlagen mit Raumheizkörpern anhand der Heizlast oder des Wärmebedarfs bzw. der Wärmeleistung der vorhandenen Heizkörper sowie der Temperaturdifferenz des Heizsystems.
A6: A) | B6: Ermittlung über die Heizlast: Die spezifische Gebäudeheizlast [W/m²] wird durch eine Heizlastberechnung nach DIN EN 12831 oder eine überschlägige Berechnungsmethode ermittelt. Für eine grobe Abschätzung der Heizlast für bestehende Gebäude können die Kennwerte aus der nebenstehenden Tabelle herangezogen werden. Die Anwendung dieser Kennwerte ersetzt jedoch nicht eine genaue Berechnung der Heizlast.
A9: B) | B9: Ermittlung über den Raumwärmebedarf bzw. die Heizkörper-Wärmeleistung: Der Wärmebedarf je Raum wird einer zugrundeliegenden Wärmebedarfsberechnung entnommen. Stehen diese Daten nicht zur Verfügung, können mit diesem Formblatt die vorhandenen Heizkörper aufgenommen werden. Mit diesen Daten kann die Wärmeleistung der Heizkörper anhand von Herstellerunterlagen bestimmt werden.
B15: Hinweis zur Anwendung: Wählen Sie am unteren Bildschirmrand die Registerkarte mit der gewünschten Anwendung. Mit der TAB-Taste können Sie zwischen den blau hinterlegten Auswahl- und Eingabefeldern navigieren. Drücken Sie nach Auswahl oder Eingabe die TAB-Taste.
D19: Summe Wärmeleistung
A20: 1 | D20: Verteiler: | I20: =($Q$27*$R$29)+($W$27*$X$29)+($AC$27*$AD$29)+($AI$27*$AJ$29)+($AO$27*$AP$29)+($AU$27*$AV$29)+($BA$27*$BB$29) -> 2900 | O20: W
Q21: 1200 | W21: 900 | AC21: 800
P22: Baulänge: | R22: mm | V22: Baulänge: | X22: mm | AB22: Baulänge: | AD22: mm | AH22: Baulänge: | AJ22: mm | AN22: Baulänge: | AP22: mm | AT22: Baulänge: | AV22: mm | AZ22: Baulänge: | BB22: mm
Q23: 500 | W23: 500 | AC23: 600
P24: Bauhöhe: | R24: mm | V24: Bauhöhe: | X24: mm | AB24: Bauhöhe: | AD24: mm | AH24: Bauhöhe: | AJ24: mm | AN24: Bauhöhe: | AP24: mm | AT24: Bauhöhe: | AV24: mm | AZ24: Bauhöhe: | BB24: mm
Q25: 115 | W25: 115 | AC25: 115
P26: Bautiefe: | R26: mm | V26: Bautiefe: | X26: mm | AB26: Bautiefe: | AD26: mm | AH26: Bautiefe: | AJ26: mm | AN26: Bautiefe: | AP26: mm | AT26: Bautiefe: | AV26: mm | AZ26: Bautiefe: | BB26: mm
Q27: 1250 | W27: 850 | AC27: 800
P28: Wärmeleistung: | R28: W | V28: Wärmeleistung: | X28: W | AB28: Wärmeleistung: | AD28: W | AH28: Wärmeleistung: | AJ28: W | AN28: Wärmeleistung: | AP28: W | AT28: Wärmeleistung: | AV28: W | AZ28: Wärmeleistung: | BB28: W
P29: Anzahl der Heizkörper: | R29: 1 | V29: Anzahl der Heizkörper: | X29: 1 | AB29: Anzahl der Heizkörper: | AD29: 1 | AH29: Anzahl der Heizkörper: | AJ29: 1 | AN29: Anzahl der Heizkörper: | AP29: 1 | AT29: Anzahl der Heizkörper: | AV29: 1 | AZ29: Anzahl der Heizkörper: | BB29: 1
D30: Summe Wärmeleistung
A31: 1 | D31: Verteiler: | I31: =($Q$38*$R$40)+($W$38*$X$40)+($AC$38*$AD$40)+($AI$38*$AJ$40)+($AO$38*$AP$40)+($AU$38*$AV$40)+($BA$38*$BB$40) -> 3700 | O31: W
Q32: 1200 | W32: 900 | AC32: 1400
P33: Baulänge: | R33: mm | V33: Baulänge: | X33: mm | AB33: Baulänge: | AD33: mm | AH33: Baulänge: | AJ33: mm | AN33: Baulänge: | AP33: mm | AT33: Baulänge: | AV33: mm | AZ33: Baulänge: | BB33: mm
Q34: 500 | W34: 500 | AC34: 600
P35: Bauhöhe: | R35: mm | V35: Bauhöhe: | X35: mm | AB35: Bauhöhe: | AD35: mm | AH35: Bauhöhe: | AJ35: mm | AN35: Bauhöhe: | AP35: mm | AT35: Bauhöhe: | AV35: mm | AZ35: Bauhöhe: | BB35: mm
Q36: 115 | W36: 115 | AC36: 115
P37: Bautiefe: | R37: mm | V37: Bautiefe: | X37: mm | AB37: Bautiefe: | AD37: mm | AH37: Bautiefe: | AJ37: mm | AN37: Bautiefe: | AP37: mm | AT37: Bautiefe: | AV37: mm | AZ37: Bautiefe: | BB37: mm
Q38: 1250 | W38: 850 | AC38: 1600
P39: Wärmeleistung: | R39: W | V39: Wärmeleistung: | X39: W | AB39: Wärmeleistung: | AD39: W | AH39: Wärmeleistung: | AJ39: W | AN39: Wärmeleistung: | AP39: W | AT39: Wärmeleistung: | AV39: W | AZ39: Wärmeleistung: | BB39: W
P40: Anzahl der Heizkörper: | R40: 1 | V40: Anzahl der Heizkörper: | X40: 1 | AB40: Anzahl der Heizkörper: | AD40: 1 | AH40: Anzahl der Heizkörper: | AJ40: 1 | AN40: Anzahl der Heizkörper: | AP40: 1 | AT40: Anzahl der Heizkörper: | AV40: 1 | AZ40: Anzahl der Heizkörper: | BB40: 1
Q42: 70 | R42: °C | T42: Temperaturdifferenz DT Vorlauftemperatur TVL | W42: =$Q$42-$Q$45 -> 20 | X42: K | AB42: Auswahl Abgleichventil
D43: Summe Wärmeleistung
AB44: TacoSetter Bypass 100
D45: Strang: | I45: =($I$20*$A$20)+($I$31*$A$31) -> 6600 | O45: W | Q45: 50 | R45: °C | T45: Rücklauftemperatur TRL
AB46: Dimension | AC46: Messbereich | AE46: l/min
AB47: DN 15 | AD47: 2-8 l/min | AE47: =$V$57 -> 4.7
B48: Berechnung der Volumenströme für den Strangabgleich: | AB48: DN 20 | AD48: 4-15 l/min | AE48: 4.7
AB49: DN 20 | AD49: 8-30 l/min | AE49: 4.7
A50: A) | C50: Heizlast Q [W] = spezifische Heizlast [W/m²] x Summe aller Raumflächen | AB50: DN 25 | AD50: 6-20 l/min | AE50: 4.7
AB51: DN 25 | AD51: 10-40 l/min | AE51: 4.7
AB52: DN 32 | AD52: 20-70 l/min | AE52: 4.7
A53: B) | C53: Heizlast Q [W] = Summe Wärmeleistung Strang | AB53: DN 40 | AD53: 30-120 l/min | AE53: 4.7
AB54: DN 50 | AD54: 50-200 l/min | AE54: 4.7
C55: Volumenstrom im Strang: | AB55: TacoSetter Bypass Flansch
C56: . | J56: .
C57: V | D57: = | J57: Q | O57: = | P57: =I45 -> 6600 | R57: W | U57: = | V57: =$I$45/(1.163*60*$W$42) -> 4.7 | X57: l | AB57: Dimension | AC57: Messbereich | AE57: l/min
F58: c x (TVL-TRL) | P58: c x | Q58: =$W$42 -> 20 | R58: K | X58: min | AB58: DN 65 | AD58: 60-325 l/min | AE58: =$V$57 -> 4.7
AB59: DN 80 | AD59: 75-450 l/min | AE59: =$V$57 -> 4.7
AB60: DN 100 | AD60: 100-650 l/min | AE60: =$V$57 -> 4.7
C61: c = | D61: Konstante für die spezifische Wärmekapazität von Wasser (1,163 Wh / l x K)
D62: Die Formel enthält die Umrechnung der Einheit [l/h] in [l/min]
A67: Anzahl Stockwerke
A68: 1
A69: 2
A70: 3
A71: 4
A72: 5
A73: 6
A74: 7
A75: 8
A76: 9
A77: 10
A78: 11
A79: 12
A80: 13
A81: 14
A82: 15
A83: 16
A84: 17
A85: 18
A86: 19
A87: 20
A88: 21
A89: 22
A90: 23
A91: 24
A92: 25
A93: 26
A94: 27
A95: 28
A96: 29
A97: 30

Sheet Fußbodenheizung (A)
B3: Hydraulischer Abgleich in bestehenden Gebäuden
B5: Ermittlung der Volumenströme für den statischen Strangabgleich von Heizungsanlagen mit Raumheizkörpern anhand der Heizlast oder des Wärmebedarfs bzw. der Wärmeleistung der vorhandenen Heizkörper sowie der Temperaturdifferenz des Heizsystems. | AA5: Drücken Sie nach Auswahl oder Eingabe jeweils die TAB-Taste.
A6: A) | B6: Ermittlung über die Heizlast: Die spezifische Gebäudeheizlast [W/m²] wird durch eine Heizlastberechnung nach DIN EN 12831 oder eine überschlägige Berechnungsmethode ermittelt. Für eine grobe Abschätzung der Heizlast für bestehende Gebäude können die Kennwerte aus der nebenstehenden Tabelle herangezogen werden. Die Anwendung dieser Kennwerte ersetzt jedoch nicht eine genaue Berechnung der Heizlast. | AA6: Erfahrungswerte für die spezifische Heizlast bestehender Gebäude zur Abschätzung der Heizlast
AA9: Baujahr | AE9: spezifische Heizlast
A10: B) | B10: Ermittlung über den Raumwärmebedarf bzw. die Heizkörper-Wärmeleistung: Der Wärmebedarf je Raum wird einer zugrundeliegenden Wärmebedarfsberechnung entnommen. Stehen diese Daten nicht zur Verfügung, können mit diesem Formblatt die vorhandenen Heizkörper aufgenommen werden. Mit diesen Daten kann die Wärmeleistung der Heizkörper anhand von Herstellerunterlagen bestimmt werden. | AA10: bis 1970, ungedämmt | AE10: 120…180 W/m²
AA11: 1977 bis 1984 | AE11: 70…100 W/m²
AA12: 1985 bis 1995 | AE12: 50…70 W/m²
AA13: Neubau, EnEV | AE13: 40…50 W/m²
AA14: Neubau, KfW 40/60 | AE14: 20…30 W/m²
B15: Hinweis zur Anwendung: Wählen Sie am unteren Bildschirmrand die Registerkarte mit der gewünschten Anwendung. Mit der TAB-Taste können Sie zwischen den blau hinterlegten Auswahl- und Eingabefeldern navigieren. Drücken Sie nach Auswahl oder Eingabe die TAB-Taste. | AA15: Passivhaus | AE15: 20…30 W/m²
AA16: Korrekturfaktoren für Wärmedurchgangswerte verschiedener Bodenbeläge
AC19: Fliesenbelag: | AD19: fB = | AE19: 1.0
AC20: Laminatboden: | AD20: fB = | AE20: 1.2
AC21: Teppich-, Parkettboden: | AD21: fB = | AE21: 1.3
AA22: Auswahl: | AC22: 60 | AE22: W/m²
D23: Summe Wärmeleistung
D24: Verteiler: | I24: =($AC$22*(($Q$26*$Q$28*$R$33)+($W$26*$W$28*$X$33)+($AC$26*$AC$28*$AD$33)+($AI$26*$AI$28*$AJ$33)+($AO$26*$AO$28*$AP$33)+($AU$26*$AU$28*$AV$33)+($BA$26*$BA$28*$BB$33))) -> 2880 | O24: W
A26: 1 | P26: Raumgröße: | Q26: 16 | R26: m² | V26: Raumgröße: | W26: 11 | X26: m² | AB26: Raumgröße: | AC26: 21 | AD26: m² | AH26: Raumgröße: | AJ26: m² | AN26: Raumgröße: | AP26: m² | AT26: Raumgröße: | AV26: m² | AZ26: Raumgröße: | BB26: m²
P28: Korrekturfaktor fB: | Q28: 1.0 | V28: Korrekturfaktor fB: | W28: 1.0 | AB28: Korrekturfaktor fB: | AC28: 1.0 | AH28: Korrekturfaktor fB: | AN28: Korrekturfaktor fB: | AT28: Korrekturfaktor fB: | AZ28: Korrekturfaktor fB:
P32: Durchflussmenge: | Q32: =($AC$22*Q$26*Q$28)/(1.163*60*$W$46) -> 2.0 | R32: l/min | V32: Durchflussmenge: | W32: =($AC$22*W$26*W$28)/(1.163*60*$W$46) -> 1.4 | X32: l/min | AB32: Durchflussmenge: | AC32: =($AC$22*AC$26*AC$28)/(1.163*60*$W$46) -> 2.6 | AD32: l/min | AH32: Durchflussmenge: | AI32: =($AC$22*AI$26*AI$28)/(1.163*60*$W$46) -> 0.0 | AJ32: l/min | AN32: Durchflussmenge: | AO32: =($AC$22*AO$26*AO$28)/(1.163*60*$W$46) -> 0.0 | AP32: l/min | AT32: Durchflussmenge: | AU32: =($AC$22*AU$26*AU$28)/(1.163*60*$W$46) -> 0.0 | AV32: l/min | AZ32: Durchflussmenge: | BA32: =($AC$22*BA$26*BA$28)/(1.163*60*$W$46) -> 0.0 | BB32: l/min
P33: Anzahl der Heizkreise: | R33: 1 | V33: Anzahl der Heizkreise: | X33: 1 | AB33: Anzahl der Heizkreise: | AD33: 1 | AH33: Anzahl der Heizkreise: | AJ33: 1 | AN33: Anzahl der Heizkreise: | AP33: 1 | AT33: Anzahl der Heizkreise: | AV33: 1 | AZ33: Anzahl der Heizkreise: | BB33: 1
D34: Summe Wärmeleistung
D35: Verteiler: | I35: =($AC$22*(($Q$37*$Q$39*$R$44)+($W$37*$W$39*$X$44)+($AC$37*$AC$39*$AD$44)+($AI$37*$AI$39*$AJ$44)+($AO$37*$AO$39*$AP$44)+($AU$37*$AU$39*$AV$44)+($BA$37*$BA$39*$BB$44))) -> 2220 | O35: W
A37: 1 | P37: Raumgröße: | Q37: 9 | R37: m² | V37: Raumgröße: | W37: 14 | X37: m² | AB37: Raumgröße: | AC37: 7 | AD37: m² | AH37: Raumgröße: | AI37: 7 | AJ37: m² | AN37: Raumgröße: | AP37: m² | AT37: Raumgröße: | AV37: m² | AZ37: Raumgröße: | BB37: m²
P39: Korrekturfaktor fB: | Q39: 1.0 | V39: Korrekturfaktor fB: | W39: 1.0 | AB39: Korrekturfaktor fB: | AC39: 1.0 | AH39: Korrekturfaktor fB: | AI39: 1.0 | AN39: Korrekturfaktor fB: | AT39: Korrekturfaktor fB: | AZ39: Korrekturfaktor fB:
P43: Durchflussmenge: | Q43: =($AC$22*Q$37*Q$39)/(1.163*60*$W$46) -> 1.1 | R43: l/min | V43: Durchflussmenge | W43: =($AC$22*W$37*W$39)/(1.163*60*$W$46) -> 1.7 | X43: l/min | AB43: Durchflussmenge: | AC43: =($AC$22*AC$37*AC$39)/(1.163*60*$W$46) -> 0.9 | AD43: l/min | AH43: Durchflussmenge: | AI43: =($AC$22*AI$37*AI$39)/(1.163*60*$W$46) -> 0.9 | AJ43: l/min | AN43: Durchflussmenge: | AO43: =($AC$22*AO$37*AO$39)/(1.163*60*$W$46) -> 0.0 | AP43: l/min | AT43: Durchflussmenge: | AU43: =($AC$22*AU$37*AU$39)/(1.163*60*$W$46) -> 0.0 | AV43: l/min | AZ43: Durchflussmenge: | BA43: =($AC$22*BA$37*BA$39)/(1.163*60*$W$46) -> 0.0 | BB43: l/min
P44: Anzahl der Heizkreise: | R44: 1 | V44: Anzahl der Heizkreise: | X44: 1 | AB44: Anzahl der Heizkreise: | AD44: 1 | AH44: Anzahl der Heizkreise: | AJ44: 1 | AN44: Anzahl der Heizkreise: | AP44: 1 | AT44: Anzahl der Heizkreise: | AV44: 1 | AZ44: Anzahl der Heizkreise: | BB44: 1
Q46: 35 | R46: °C | T46: Temperaturdifferenz DT Vorlauftemperatur TVL | W46: =$Q$46-$Q$49 -> 7 | X46: K | AB46: Auswahl Abgleichventil
D47: Summe Wärmeleistung
AB48: TacoSetter Bypass 100
D49: Strang: | I49: =($I$24*$A$26)+($I$35*$A$37) -> 5100 | O49: W | Q49: 28 | R49: °C | T49: Rücklauftemperatur TRL
AB50: Dimension | AC50: Messbereich | AE50: l/min
AB51: DN 15 | AD51: 2-8 l/min | AE51: =$V$59 -> 10.4
AB52: DN 20 | AD52: 4-15 l/min | AE52: 10.4
B53: Berechnung der Volumenströme für den Hydraulischen Abgleich: | AB53: DN 20 | AD53: 8-30 l/min | AE53: 10.4
AB54: DN 25 | AD54: 6-20 l/min | AE54: 10.4
AB55: DN 25 | AD55: 10-40 l/min | AE55: 10.4
AB56: DN 32 | AD56: 20-70 l/min | AE56: 10.4
A57: A) | C57: Volumenstrom im Strang: | AB57: DN 40 | AD57: 30-120 l/min | AE57: 10.4
C58: . | J58: . | AB58: DN 50 | AD58: 50-200 l/min | AE58: 10.4
C59: V | D59: = | J59: Q | O59: = | P59: =$I$49 -> 5100 | R59: W | U59: = | V59: =$I$49/(1.163*60*$W$46) -> 10.4 | X59: l | AB59: TacoSetter Bypass Flansch
F60: c x (TVL-TRL) | P60: c x | Q60: =$W$46 -> 7 | R60: K | X60: min
AB61: Dimension | AC61: Messbereich | AE61: l/min
C62: c = | D62: Konstante für die spezifische Wärmekapazität von Wasser (1,163 Wh / l x K) | AB62: DN 65 | AD62: 60-325 l/min | AE62: =$V$59 -> 10.4
D63: Die Formel enthält die Umrechnung der Einheit [l/h] in [l/min] | AB63: DN 80 | AD63: 75-450 l/min | AE63: =$V$59 -> 10.4
AB64: DN 100 | AD64: 100-650 l/min | AE64: =$V$59 -> 10.4
A77: Anzahl Stockwerke | O77: Heizlast
A78: 1 | O78: 10
A79: 2 | O79: 15
A80: 3 | O80: 20
A81: 4 | O81: 25
A82: 5 | O82: 30
A83: 6 | O83: 35
A84: 7 | O84: 40
A85: 8 | O85: 45
A86: 9 | O86: 50
A87: 10 | O87: 60
A88: 11 | O88: 70
A89: 12 | O89: 80
A90: 13 | O90: 90
A91: 14 | O91: 100
A92: 15 | O92: 110
A93: 16 | O93: 120
A94: 17 | O94: 130
A95: 18 | O95: 140
A96: 19 | O96: 150
A97: 20 | O97: 160
A98: 21 | O98: 170
A99: 22 | O99: 180
A100: 23 | O100: 190
A101: 24 | O101: 200
A102: 25 | O102: 210
A103: 26 | O103: 220
A104: 27 | O104: 230
A105: 28 | O105: 240
A106: 29 | O106: 250
A107: 30 | O107: 300

Sheet Fußbodenheizung (B)
B3: Hydraulischer Abgleich in bestehenden Gebäuden
B5: Ermittlung der Volumenströme für den statischen Strangabgleich von Heizungsanlagen mit Raumheizkörpern anhand der Heizlast oder des Wärmebedarfs bzw. der Wärmeleistung der vorhandenen Heizkörper sowie der Temperaturdifferenz des Heizsystems.
A6: A) | B6: Ermittlung über die Heizlast: Die spezifische Gebäudeheizlast [W/m²] wird durch eine Heizlastberechnung nach DIN EN 12831 oder eine überschlägige Berechnungsmethode ermittelt. Für eine grobe Abschätzung der Heizlast für bestehende Gebäude können die Kennwerte aus der nebenstehenden Tabelle herangezogen werden. Die Anwendung dieser Kennwerte ersetzt jedoch nicht eine genaue Berechnung der Heizlast.
A10: B) | B10: Ermittlung über den Raumwärmebedarf bzw. die Heizkörper-Wärmeleistung: Der Wärmebedarf je Raum wird einer zugrundeliegenden Wärmebedarfsberechnung entnommen. Stehen diese Daten nicht zur Verfügung, können mit diesem Formblatt die vorhandenen Heizkörper aufgenommen werden. Mit diesen Daten kann die Wärmeleistung der Heizkörper anhand von Herstellerunterlagen bestimmt werden. | AA10: Korrekturfaktoren für Wärmedurchgangswerte verschiedener Bodenbeläge
AA13: Fliesenbelag: | AD13: fB = | AE13: 1.0
AA14: Laminatboden: | AD14: fB = | AE14: 1.2
B15: Hinweis zur Anwendung: Wählen Sie am unteren Bildschirmrand die Registerkarte mit der gewünschten Anwendung. Mit der TAB-Taste können Sie zwischen den blau hinterlegten Auswahl- und Eingabefeldern navigieren. Drücken Sie nach Auswahl oder Eingabe die TAB-Taste. | AA15: Teppich-, Parkettboden: | AD15: fB = | AE15: 1.3
D22: Summe Wärmeleistung
D23: Verteiler: | I23: =($Q$25*$Q$27*$R$32)+($W$25*$W$27*$X$32)+($AC$25*$AC$27*$AD$32)+($AI$25*$AI$27*$AJ$32)+($AO$25*$AO$27*$AP$32)+($AU$25*$AU$27*$AV$32)+($BA$25*$BA$27*$BB$32) -> 2880 | O23: W
A25: 1 | P25: Wärmeleistung: | Q25: 660 | R25: W | V25: Wärmeleistung: | W25: 960 | X25: W | AB25: Wärmeleistung: | AC25: 1260 | AD25: W | AH25: Wärmeleistung: | AJ25: W | AN25: Wärmeleistung: | AP25: W | AT25: Wärmeleistung: | AV25: W | AZ25: Wärmeleistung: | BB25: W
P27: Korrekturfaktor fB: | Q27: 1.0 | V27: Korrekturfaktor fB: | W27: 1.0 | AB27: Korrekturfaktor fB: | AC27: 1.0 | AH27: Korrekturfaktor fB: | AN27: Korrekturfaktor fB: | AT27: Korrekturfaktor fB: | AZ27: Korrekturfaktor fB:
P31: Durchflussmenge: | Q31: =(Q$25*Q$27)/(1.163*60*$W$45) -> 1.4 | R31: l/min | V31: Durchflussmenge: | W31: =(W$25*W$27)/(1.163*60*$W$45) -> 2.0 | X31: l/min | AB31: Durchflussmenge: | AC31: =(AC$25*AC$27)/(1.163*60*$W$45) -> 2.6 | AD31: l/min | AH31: Durchflussmenge: | AI31: =(AI$25*AI$27)/(1.163*60*$W$45) -> 0.0 | AJ31: l/min | AN31: Durchflussmenge: | AO31: =(AO$25*AO$27)/(1.163*60*$W$45) -> 0.0 | AP31: l/min | AT31: Durchflussmenge: | AU31: =(AU$25*AU$27)/(1.163*60*$W$45) -> 0.0 | AV31: l/min | AZ31: Durchflussmenge: | BA31: =(BA$25*BA$27)/(1.163*60*$W$45) -> 0.0 | BB31: l/min
P32: Anzahl der Heizkreise: | R32: 1 | V32: Anzahl der Heizkreise: | X32: 1 | AB32: Anzahl der Heizkreise: | AD32: 1 | AH32: Anzahl der Heizkreise: | AJ32: 1 | AN32: Anzahl der Heizkreise: | AP32: 1 | AT32: Anzahl der Heizkreise: | AV32: 1 | AZ32: Anzahl der Heizkreise: | BB32: 1
D33: Summe Wärmeleistung
D34: Verteiler: | I34: =($Q$36*$Q$38*$R$43)+($W$36*$W$38*$X$43)+($AC$36*$AC$38*$AD$43)+($AI$36*$AI$38*$AJ$43)+($AO$36*$AO$38*$AP$43)+($AU$36*$AU$38*$AV$43)+($BA$36*$BA$38*$BB$43) -> 4050 | O34: W
A36: 1 | P36: Wärmeleistung: | Q36: 1950 | R36: W | V36: Wärmeleistung: | W36: 1200 | X36: W | AB36: Wärmeleistung: | AC36: 900 | AD36: W | AH36: Wärmeleistung: | AJ36: W | AN36: Wärmeleistung: | AP36: W | AT36: Wärmeleistung: | AV36: W | AZ36: Wärmeleistung: | BB36: W
P38: Korrekturfaktor fB: | Q38: 1.0 | V38: Korrekturfaktor fB: | W38: 1.0 | AB38: Korrekturfaktor fB: | AC38: 1.0 | AH38: Korrekturfaktor fB: | AN38: Korrekturfaktor fB: | AT38: Korrekturfaktor fB: | AZ38: Korrekturfaktor fB:
P42: Durchflussmenge: | Q42: =(Q$36*Q$38)/(1.163*60*$W$45) -> 4.0 | R42: l/min | V42: Durchflussmenge | W42: =(W$36*W$38)/(1.163*60*$W$45) -> 2.5 | X42: l/min | AB42: Durchflussmenge: | AC42: =(AC$36*AC$38)/(1.163*60*$W$45) -> 1.8 | AD42: l/min | AH42: Durchflussmenge: | AI42: =(AI$36*AI$38)/(1.163*60*$W$45) -> 0.0 | AJ42: l/min | AN42: Durchflussmenge: | AO42: =(AO$36*AO$38)/(1.163*60*$W$45) -> 0.0 | AP42: l/min | AT42: Durchflussmenge: | AU42: =(AU$36*AU$38)/(1.163*60*$W$45) -> 0.0 | AV42: l/min | AZ42: Durchflussmenge: | BA42: =(BA$36*BA$38)/(1.163*60*$W$45) -> 0.0 | BB42: l/min
P43: Anzahl der Heizkreise: | R43: 1 | V43: Anzahl der Heizkreise: | X43: 1 | AB43: Anzahl der Heizkreise: | AD43: 1 | AH43: Anzahl der Heizkreise: | AJ43: 1 | AN43: Anzahl der Heizkreise: | AP43: 1 | AT43: Anzahl der Heizkreise: | AV43: 1 | AZ43: Anzahl der Heizkreise: | BB43: 1
Q45: 35 | R45: °C | T45: Temperaturdifferenz DT Vorlauftemperatur TVL | W45: =$Q$45-$Q$48 -> 7 | X45: K | AB45: Auswahl Abgleichventil
D46: Summe Wärmeleistung
AB47: TacoSetter Bypass 100
D48: Strang: | I48: =($I$23*$A$25)+($I$34*$A$36) -> 6930 | O48: W | Q48: 28 | R48: °C | T48: Rücklauftemperatur TRL
AB49: Dimension | AC49: Messbereich | AE49: l/min
AB50: DN 15 | AD50: 2-8 l/min | AE50: =$V$58 -> 14.2
AB51: DN 20 | AD51: 4-15 l/min | AE51: 14.2
B52: Berechnung der Volumenströme für den Hydraulischen Abgleich: | AB52: DN 20 | AD52: 8-30 l/min | AE52: 14.2
AB53: DN 25 | AD53: 6-20 l/min | AE53: 14.2
AB54: DN 25 | AD54: 10-40 l/min | AE54: 14.2
AB55: DN 32 | AD55: 20-70 l/min | AE55: 14.2
A56: A) | C56: Volumenstrom im Strang: | AB56: DN 40 | AD56: 30-120 l/min | AE56: 14.2
C57: . | J57: . | AB57: DN 50 | AD57: 50-200 l/min | AE57: 14.2
C58: V | D58: = | J58: Q | O58: = | P58: =$I$48 -> 6930 | R58: W | U58: = | V58: =$I$48/(1.163*60*$W$45) -> 14.2 | X58: l | AB58: TacoSetter Bypass Flansch
F59: c x (TVL-TRL) | P59: c x | Q59: =$W$45 -> 7 | R59: K | X59: min
AB60: Dimension | AC60: Messbereich | AE60: l/min
C61: c = | D61: Konstante für die spezifische Wärmekapazität von Wasser (1,163 Wh / l x K) | AB61: DN 65 | AD61: 60-325 l/min | AE61: =$V$58 -> 14.2
D62: Die Formel enthält die Umrechnung der Einheit [l/h] in [l/min] | AB62: DN 80 | AD62: 75-450 l/min | AE62: =$V$58 -> 14.2
AB63: DN 100 | AD63: 100-650 l/min | AE63: =$V$58 -> 14.2
A76: Anzahl Stockwerke | O76: Heizlast
A77: 1 | O77: 10
A78: 2 | O78: 15
A79: 3 | O79: 20
A80: 4 | O80: 25
A81: 5 | O81: 30
A82: 6 | O82: 35
A83: 7 | O83: 40
A84: 8 | O84: 45
A85: 9 | O85: 50
A86: 10 | O86: 60
A87: 11 | O87: 70
A88: 12 | O88: 80
A89: 13 | O89: 90
A90: 14 | O90: 100
A91: 15 | O91: 110
A92: 16 | O92: 120
A93: 17 | O93: 130
A94: 18 | O94: 140
A95: 19 | O95: 150
A96: 20 | O96: 160
A97: 21 | O97: 170
A98: 22 | O98: 180
A99: 23 | O99: 190
A100: 24 | O100: 200
A101: 25 | O101: 210
A102: 26 | O102: 220
A103: 27 | O103: 230
A104: 28 | O104: 240
A105: 29 | O105: 250
A106: 30 | O106: 300
